Workbook

Sheet Indice
C6: Piano d'ammortamento e calcolo Taeg Ver. 3.0 -2014
C25: .: S t u d i o B a t t a g l i a - R a g u s a :.
C26: Dottore Commercialista - Revisore Contabile
C27: Via J.A. Spataro,17/a - 97100 Ragusa
C28: web: www.crescitapmi.it
C29: blog: www.indipendenzafinanziaria.it
C30: studiobattaglia@crescitapmi.it

Sheet Piano di ammortamento
A1: Capitale finanziato | C1: 30000
A2: Tasso di interesse annuo | C2: 0.13
A3: Durata anni | C3: 10
A4: Pagamenti per anno | C4: 12
A5: Rata | C5: =PMT(C2/C4,C3*C4,-C1) -> 447.9322199
A6: Totale interessi | C6: =SUM(D11:D130) -> 23751.86639
A7: Montante | C7: =C5*C4 -> 5375.186639
A9: N° | B9: Rata | C9: Q Capitale | D9: Q interessi | E9: Capitale restituito | F9: Capitale da restituire
A10: 0 | F10: =$C$1 -> 30000
A11: =IF(OR(F10<1,F10=""),"",A10+1) -> 1 | B11: =IF(OR(F10<1,F10=""),"",$C$5) -> 447.9322199 | C11: =IF(OR(F10<1,F10=""),"",PPMT($C$2/$C$4,A11,$C$3*$C$4,-$C$1)) -> 122.9322199 | D11: =IF(OR(F10<1,F10=""),"",IPMT($C$2/$C$4,A11,$C$3*$C$4,-$C$1)) -> 325 | E11: =IF(OR(F10<1,F10=""),"",E10+C11) -> 122.9322199 | F11: =IF(OR(F10<1,F10=""),"",$F$10-E11) -> 29877.06778
A12: 2 | B12: 447.9322199 | C12: 124.2639856 | D12: 323.6682343 | E12: 247.1962056 | F12: 29752.80379
A13: 3 | B13: 447.9322199 | C13: 125.6101788 | D13: 322.3220411 | E13: 372.8063844 | F13: 29627.19362
A14: 4 | B14: 447.9322199 | C14: 126.9709558 | D14: 320.9612642 | E14: 499.7773402 | F14: 29500.22266
A15: 5 | B15: 447.9322199 | C15: 128.3464745 | D15: 319.5857455 | E15: 628.1238146 | F15: 29371.87619
A16: 6 | B16: 447.9322199 | C16: 129.7368946 | D16: 318.1953253 | E16: 757.8607092 | F16: 29242.13929
A17: 7 | B17: 447.9322199 | C17: 131.1423776 | D17: 316.7898423 | E17: 889.0030868 | F17: 29110.99691
A18: 8 | B18: 447.9322199 | C18: 132.5630867 | D18: 315.3691332 | E18: 1021.566174 | F18: 28978.43383
A19: 9 | B19: 447.9322199 | C19: 133.9991868 | D19: 313.9330331 | E19: 1155.56536 | F19: 28844.43464
A20: 10 | B20: 447.9322199 | C20: 135.4508447 | D20: 312.4813753 | E20: 1291.016205 | F20: 28708.98379
A21: 11 | B21: 447.9322199 | C21: 136.9182288 | D21: 311.0139911 | E21: 1427.934434 | F21: 28572.06557
A22: 12 | B22: 447.9322199 | C22: 138.4015096 | D22: 309.5307103 | E22: 1566.335943 | F22: 28433.66406
A23: 13 | B23: 447.9322199 | C23: 139.9008593 | D23: 308.0313606 | E23: 1706.236803 | F23: 28293.7632
A24: 14 | B24: 447.9322199 | C24: 141.416452 | D24: 306.515768 | E24: 1847.653255 | F24: 28152.34675
A25: 15 | B25: 447.9322199 | C25: 142.9484635 | D25: 304.9837564 | E25: 1990.601718 | F25: 28009.39828
A26: 16 | B26: 447.9322199 | C26: 144.4970719 | D26: 303.4351481 | E26: 2135.09879 | F26: 27864.90121
A27: 17 | B27: 447.9322199 | C27: 146.0624568 | D27: 301.8697631 | E27: 2281.161247 | F27: 27718.83875
A28: 18 | B28: 447.9322199 | C28: 147.6448001 | D28: 300.2874198 | E28: 2428.806047 | F28: 27571.19395
A29: 19 | B29: 447.9322199 | C29: 149.2442854 | D29: 298.6879345 | E29: 2578.050333 | F29: 27421.94967
A30: 20 | B30: 447.9322199 | C30: 150.8610985 | D30: 297.0711214 | E30: 2728.911431 | F30: 27271.08857
A31: 21 | B31: 447.9322199 | C31: 152.4954271 | D31: 295.4367928 | E31: 2881.406858 | F31: 27118.59314
A32: 22 | B32: 447.9322199 | C32: 154.1474609 | D32: 293.784759 | E32: 3035.554319 | F32: 26964.44568
A33: 23 | B33: 447.9322199 | C33: 155.8173917 | D33: 292.1148282 | E33: 3191.371711 | F33: 26808.62829
A34: 24 | B34: 447.9322199 | C34: 157.5054135 | D34: 290.4268065 | E34: 3348.877124 | F34: 26651.12288
A35: 25 | B35: 447.9322199 | C35: 159.2117221 | D35: 288.7204978 | E35: 3508.088846 | F35: 26491.91115
A36: 26 | B36: 447.9322199 | C36: 160.9365158 | D36: 286.9957042 | E36: 3669.025362 | F36: 26330.97464
A37: 27 | B37: 447.9322199 | C37: 162.6799947 | D37: 285.2522252 | E37: 3831.705357 | F37: 26168.29464
A38: 28 | B38: 447.9322199 | C38: 164.4423613 | D38: 283.4898586 | E38: 3996.147718 | F38: 26003.85228
A39: 29 | B39: 447.9322199 | C39: 166.2238202 | D39: 281.7083997 | E39: 4162.371538 | F39: 25837.62846
A40: 30 | B40: 447.9322199 | C40: 168.0245783 | D40: 279.9076417 | E40: 4330.396117 | F40: 25669.60388
A41: 31 | B41: 447.9322199 | C41: 169.8448445 | D41: 278.0873754 | E41: 4500.240961 | F41: 25499.75904
A42: 32 | B42: 447.9322199 | C42: 171.6848303 | D42: 276.2473896 | E42: 4671.925791 | F42: 25328.07421
A43: 33 | B43: 447.9322199 | C43: =IF(OR(F42<1,F42=""),"",PPMT($C$2/$C$4,A43,$C$3*$C$4,-$C$1)) -> 173.5447493 | D43: =IF(OR(F42<1,F42=""),"",IPMT($C$2/$C$4,A43,$C$3*$C$4,-$C$1)) -> 274.3874706 | E43: 4845.470541 | F43: 25154.52946
A44: 34 | B44: 447.9322199 | C44: 175.4248175 | D44: 272.5074025 | E44: 5020.895358 | F44: 24979.10464
A45: 35 | B45: 447.9322199 | C45: 177.325253 | D45: 270.606967 | E45: 5198.220611 | F45: 24801.77939
A46: 36 | B46: 447.9322199 | C46: 179.2462766 | D46: 268.6859434 | E46: 5377.466888 | F46: 24622.53311
A47: 37 | B47: 447.9322199 | C47: 181.1881112 | D47: 266.7441087 | E47: 5558.654999 | F47: 24441.345
A48: 38 | B48: 447.9322199 | C48: 183.1509824 | D48: 264.7812375 | E48: 5741.805981 | F48: 24258.19402
A49: 39 | B49: 447.9322199 | C49: 185.1351181 | D49: 262.7971019 | E49: 5926.941099 | F49: 24073.0589
A50: 40 | B50: 447.9322199 | C50: 187.1407485 | D50: 260.7914714 | E50: 6114.081848 | F50: 23885.91815
A51: 41 | B51: 447.9322199 | C51: 189.1681066 | D51: 258.7641133 | E51: 6303.249955 | F51: 23696.75005
A52: 42 | B52: 447.9322199 | C52: 191.2174278 | D52: 256.7147922 | E52: 6494.467382 | F52: 23505.53262
A53: 43 | B53: 447.9322199 | C53: 193.2889499 | D53: 254.64327 | E53: 6687.756332 | F53: 23312.24367
A54: 44 | B54: 447.9322199 | C54: 195.3829135 | D54: 252.5493064 | E54: 6883.139246 | F54: 23116.86075
A55: 45 | B55: 447.9322199 | C55: 197.4995618 | D55: 250.4326582 | E55: 7080.638808 | F55: 22919.36119
A56: 46 | B56: 447.9322199 | C56: 199.6391403 | D56: 248.2930796 | E56: 7280.277948 | F56: 22719.72205
A57: 47 | B57: 447.9322199 | C57: 201.8018977 | D57: 246.1303222 | E57: 7482.079846 | F57: 22517.92015
A58: 48 | B58: 447.9322199 | C58: 203.9880849 | D58: 243.944135 | E58: 7686.067931 | F58: 22313.93207
A59: 49 | B59: 447.9322199 | C59: 206.1979558 | D59: 241.7342641 | E59: 7892.265886 | F59: 22107.73411
A60: 50 | B60: 447.9322199 | C60: 208.431767 | D60: 239.5004529 | E60: 8100.697653 | F60: 21899.30235
A61: 51 | B61: 447.9322199 | C61: 210.6897778 | D61: 237.2424421 | E61: 8311.387431 | F61: 21688.61257
A62: 52 | B62: 447.9322199 | C62: 212.9722504 | D62: 234.9599695 | E62: 8524.359682 | F62: 21475.64032
A63: 53 | B63: 447.9322199 | C63: 215.2794498 | D63: 232.6527701 | E63: 8739.639132 | F63: 21260.36087
A64: 54 | B64: 447.9322199 | C64: 217.6116439 | D64: 230.3205761 | E64: 8957.250775 | F64: 21042.74922
A65: 55 | B65: 447.9322199 | C65: 219.9691033 | D65: 227.9631166 | E65: 9177.219879 | F65: 20822.78012
A66: 56 | B66: 447.9322199 | C66: 222.352102 | D66: 225.580118 | E66: 9399.571981 | F66: 20600.42802
A67: 57 | B67: 447.9322199 | C67: 224.7609164 | D67: 223.1713035 | E67: 9624.332897 | F67: 20375.6671
A68: 58 | B68: 447.9322199 | C68: 227.1958263 | D68: 220.7363936 | E68: 9851.528723 | F68: 20148.47128
A69: 59 | B69: 447.9322199 | C69: 229.6571144 | D69: 218.2751055 | E69: 10081.18584 | F69: 19918.81416
A70: 60 | B70: 447.9322199 | C70: 232.1450665 | D70: 215.7871534 | E70: 10313.3309 | F70: 19686.6691
A71: 61 | B71: 447.9322199 | C71: 234.6599714 | D71: 213.2722485 | E71: 10547.99088 | F71: 19452.00912
A72: 62 | B72: 447.9322199 | C72: 237.2021211 | D72: 210.7300988 | E72: 10785.193 | F72: 19214.807
A73: 63 | B73: 447.9322199 | C73: 239.7718107 | D73: 208.1604092 | E73: 11024.96481 | F73: 18975.03519
A74: 64 | B74: 447.9322199 | C74: 242.3693387 | D74: 205.5628813 | E74: 11267.33415 | F74: 18732.66585
A75: =IF(OR(F74<1,F74=""),"",A74+1) -> 65 | B75: =IF(OR(F74<1,F74=""),"",$C$5) -> 447.9322199 | C75: =IF(OR(F74<1,F74=""),"",PPMT($C$2/$C$4,A75,$C$3*$C$4,-$C$1)) -> 244.9950065 | D75: =IF(OR(F74<1,F74=""),"",IPMT($C$2/$C$4,A75,$C$3*$C$4,-$C$1)) -> 202.9372134 | E75: =IF(OR(F74<1,F74=""),"",E74+C75) -> 11512.32915 | F75: =IF(OR(F74<1,F74=""),"",$F$10-E75) -> 18487.67085
A76: 66 | B76: 447.9322199 | C76: 247.6491191 | D76: 200.2831008 | E76: 11759.97827 | F76: 18240.02173
A77: 67 | B77: 447.9322199 | C77: 250.3319845 | D77: 197.6002354 | E77: 12010.31026 | F77: 17989.68974
A78: 68 | B78: 447.9322199 | C78: 253.0439144 | D78: 194.8883056 | E78: 12263.35417 | F78: 17736.64583
A79: 69 | B79: 447.9322199 | C79: 255.7852234 | D79: 192.1469965 | E79: 12519.13939 | F79: 17480.86061
A80: 70 | B80: 447.9322199 | C80: 258.55623 | D80: 189.3759899 | E80: 12777.69562 | F80: 17222.30438
A81: 71 | B81: 447.9322199 | C81: 261.3572559 | D81: 186.5749641 | E81: 13039.05288 | F81: 16960.94712
A82: 72 | B82: 447.9322199 | C82: 264.1886261 | D82: 183.7435938 | E82: 13303.24151 | F82: 16696.75849
A83: 73 | B83: 447.9322199 | C83: 267.0506696 | D83: 180.8815503 | E83: 13570.29218 | F83: 16429.70782
A84: 74 | B84: 447.9322199 | C84: 269.9437185 | D84: 177.9885014 | E84: 13840.23589 | F84: 16159.76411
A85: 75 | B85: 447.9322199 | C85: 272.8681088 | D85: 175.0641111 | E85: 14113.104 | F85: 15886.896
A86: 76 | B86: 447.9322199 | C86: 275.82418 | D86: 172.10804 | E86: 14388.92818 | F86: 15611.07182
A87: 77 | B87: 447.9322199 | C87: 278.8122752 | D87: 169.1199447 | E87: 14667.74046 | F87: 15332.25954
A88: 78 | B88: 447.9322199 | C88: 281.8327416 | D88: 166.0994784 | E88: 14949.5732 | F88: 15050.4268
A89: 79 | B89: 447.9322199 | C89: 284.8859296 | D89: 163.0462903 | E89: 15234.45913 | F89: 14765.54087
A90: 80 | B90: 447.9322199 | C90: 287.9721938 | D90: 159.9600261 | E90: 15522.43132 | F90: 14477.56868
A91: 81 | B91: 447.9322199 | C91: 291.0918926 | D91: 156.8403273 | E91: 15813.52322 | F91: 14186.47678
A92: 82 | B92: 447.9322199 | C92: 294.2453881 | D92: 153.6868318 | E92: 16107.7686 | F92: 13892.2314
A93: 83 | B93: 447.9322199 | C93: 297.4330465 | D93: 150.4991735 | E93: 16405.20165 | F93: 13594.79835
A94: 84 | B94: 447.9322199 | C94: 300.6552378 | D94: 147.2769821 | E94: 16705.85689 | F94: 13294.14311
A95: 85 | B95: 447.9322199 | C95: 303.9123362 | D95: 144.0198837 | E95: 17009.76922 | F95: 12990.23078
A96: 86 | B96: 447.9322199 | C96: 307.2047199 | D96: 140.7275001 | E96: 17316.97394 | F96: 12683.02606
A97: 87 | B97: 447.9322199 | C97: 310.532771 | D97: 137.3994489 | E97: 17627.50672 | F97: 12372.49328
A98: 88 | B98: 447.9322199 | C98: 313.896876 | D98: 134.0353439 | E98: 17941.40359 | F98: 12058.59641
A99: 89 | B99: 447.9322199 | C99: 317.2974255 | D99: 130.6347944 | E99: 18258.70102 | F99: 11741.29898
A100: 90 | B100: 447.9322199 | C100: 320.7348143 | D100: 127.1974057 | E100: 18579.43583 | F100: 11420.56417
A101: 91 | B101: 447.9322199 | C101: 324.2094414 | D101: 123.7227785 | E101: 18903.64527 | F101: 11096.35473
A102: 92 | B102: 447.9322199 | C102: 327.7217104 | D102: 120.2105095 | E102: 19231.36698 | F102: 10768.63302
A103: 93 | B103: 447.9322199 | C103: 331.2720289 | D103: 116.660191 | E103: 19562.63901 | F103: 10437.36099
A104: 94 | B104: 447.9322199 | C104: 334.8608092 | D104: 113.0714107 | E104: 19897.49982 | F104: 10102.50018
A105: 95 | B105: 447.9322199 | C105: 338.488468 | D105: 109.4437519 | E105: 20235.98829 | F105: 9764.011711
A106: 96 | B106: 447.9322199 | C106: 342.1554264 | D106: 105.7767935 | E106: 20578.14372 | F106: 9421.856285
A107: 97 | B107: 447.9322199 | C107: =IF(OR(F106<1,F106=""),"",PPMT($C$2/$C$4,A107,$C$3*$C$4,-$C$1)) -> 345.8621102 | D107: =IF(OR(F106<1,F106=""),"",IPMT($C$2/$C$4,A107,$C$3*$C$4,-$C$1)) -> 102.0701097 | E107: 20924.00583 | F107: 9075.994174
A108: 98 | B108: 447.9322199 | C108: 349.6089497 | D108: 98.32327022 | E108: 21273.61478 | F108: 8726.385225
A109: 99 | B109: 447.9322199 | C109: 353.39638 | D109: 94.53583993 | E109: 21627.01116 | F109: 8372.988845
A110: 100 | B110: 447.9322199 | C110: 357.2248408 | D110: 90.70737915 | E110: 21984.236 | F110: 8015.764004
A111: 101 | B111: 447.9322199 | C111: 361.0947766 | D111: 86.83744337 | E111: 22345.33077 | F111: 7654.669227
A112: 102 | B112: 447.9322199 | C112: 365.0066366 | D112: 82.9255833 | E112: 22710.33741 | F112: 7289.662591
A113: 103 | B113: 447.9322199 | C113: 368.9608752 | D113: 78.97134473 | E113: 23079.29828 | F113: 6920.701715
A114: 104 | B114: 447.9322199 | C114: 372.9579513 | D114: 74.97426858 | E114: 23452.25624 | F114: 6547.743764
A115: 105 | B115: 447.9322199 | C115: 376.9983292 | D115: 70.93389078 | E115: 23829.25457 | F115: 6170.745435
A116: 106 | B116: 447.9322199 | C116: 381.0824777 | D116: 66.84974221 | E116: 24210.33704 | F116: 5789.662957
A117: 107 | B117: 447.9322199 | C117: 385.2108712 | D117: 62.7213487 | E117: 24595.54791 | F117: 5404.452086
A118: 108 | B118: 447.9322199 | C118: 389.383989 | D118: 58.54823093 | E118: 24984.9319 | F118: 5015.068097
A119: 109 | B119: 447.9322199 | C119: 393.6023155 | D119: 54.32990438 | E119: 25378.53422 | F119: 4621.465781
A120: 110 | B120: 447.9322199 | C120: 397.8663406 | D120: 50.0658793 | E120: 25776.40056 | F120: 4223.599441
A121: 111 | B121: 447.9322199 | C121: 402.1765593 | D121: 45.75566061 | E121: 26178.57712 | F121: 3821.422881
A122: 112 | B122: 447.9322199 | C122: 406.533472 | D122: 41.39874788 | E122: 26585.11059 | F122: 3414.889409
A123: 113 | B123: 447.9322199 | C123: 410.9375847 | D123: 36.99463527 | E123: 26996.04818 | F123: 3003.951825
A124: 114 | B124: 447.9322199 | C124: 415.3894085 | D124: 32.54281144 | E124: 27411.43758 | F124: 2588.562416
A125: 115 | B125: 447.9322199 | C125: 419.8894604 | D125: 28.04275951 | E125: 27831.32704 | F125: 2168.672956
A126: 116 | B126: 447.9322199 | C126: 424.4382629 | D126: 23.49395702 | E126: 28255.76531 | F126: 1744.234693
A127: 117 | B127: 447.9322199 | C127: 429.0363441 | D127: 18.89587584 | E127: 28684.80165 | F127: 1315.198349
A128: 118 | B128: 447.9322199 | C128: 433.6842378 | D128: 14.24798211 | E128: 29118.48589 | F128: 881.514111
A129: 119 | B129: 447.9322199 | C129: 438.3824837 | D129: 9.549736203 | E129: 29556.86837 | F129: 443.1316273
A130: 120 | B130: 447.9322199 | C130: 443.1316273 | D130: 4.800592629 | E130: 30000 | F130: -1.091393642e-11

Sheet TAEG
B1: IPOTESI A | C1: IPOTESI B | D1: IPOTESI C
A2: Periodicità rate: | B2: mensile | C2: mensile | D2: mensile
A3: N.° rate o periodi (Es: 12 mensilità x 10 anni = 120 rate) | B3: 120 | C3: 120 | D3: 120
A4: Tan | B4: 0.13 | C4: 0.13 | D4: 0.13
A5: Importo rata | B5: 447.93 | C5: 447.93 | D5: 447.93
A6: Costi ricorrenti | B6: 0 | C6: 21 | D6: 21
A7: Importo rata + costi ricorrenti (ad es. spese d'incasso) | B7: =B5+B6 -> 447.93 | C7: =C5+C6 -> 468.93 | D7: 468.93
A8: Importo erogato lordo | B8: 30000 | C8: 30000 | D8: 30000
A9: Costi accessori una tantum (ad es. spese d'istruttoria) | B9: 0 | C9: 0 | D9: 5000
A10: Importo netto del finanziamento erogato | B10: =B8-B9 -> 30000 | C10: =C8-C9 -> 30000 | D10: 25000
A11: Valore futuro (eventuale saldo in contanti a fine del prestito) | B11: 0
A12: Pagamento rata: inizio periodo =1; fine periodo =0 | B12: 0
A13: Valore dichiarato (n° rate x importo) | B13: =IF(B5>0,B3*B7,"") -> 53751.6 | C13: =IF(C5>0,C3*C7,"") -> 56271.6 | D13: =IF(D5>0,D3*D5,"") -> 53751.6
A14: Anni di durata del prestito | B14: =IF(B5>0,IF(B$2="annuale",B3/1,IF(B$2="semestrale",B3/2,IF(B$2="quadrimestrale",B3/3,IF(B$2="trimestrale",B3/4,IF(B$2="bimestrale",B3/6,IF(B$2="mensile",B3/12,)))))),"") -> 10 | C14: =IF(C5>0,IF(C$2="annuale",C3/1,IF(C$2="semestrale",C3/2,IF(C$2="quadrimestrale",C3/3,IF(C$2="trimestrale",C3/4,IF(C$2="bimestrale",C3/6,IF(C$2="mensile",C3/12,)))))),"") -> 10 | D14: =IF(D5>0,IF(D$2="annuale",D3/1,IF(D$2="semestrale",D3/2,IF(D$2="quadrimestrale",D3/3,IF(D$2="trimestrale",D3/4,IF(D$2="bimestrale",D3/6,IF(D$2="mensile",D3/12,)))))),"") -> 10
A15: Tasso di periodo | B15: =IF(B3>0,RATE(B3,-B7,B10,B11,B12),"") -> 0.01083322879 | C15: =IF(C3>0,RATE(C3,-C7,C10,C11,C12),"") -> 0.01181106736 | D15: =IF(D3>0,RATE(D3,-D5,D10,D11,D12),"") -> 0.01486868982
A16: Tasso annuo | B16: =IF(B5>0,B15*IF(B2="annuale",1,IF(B2="semestrale",2,IF(B2="quadrimestrale",3,IF(B2="trimestrale",4,IF(B2="bimestrale",6,IF(B2="mensile",12)))))),"") -> 0.1299987454 | C16: =IF(C5>0,C15*IF(C2="annuale",1,IF(C2="semestrale",2,IF(C2="quadrimestrale",3,IF(C2="trimestrale",4,IF(C2="bimestrale",6,IF(C2="mensile",12)))))),"") -> 0.1417328083 | D16: =IF(D5>0,D15*IF(D2="annuale",1,IF(D2="semestrale",2,IF(D2="quadrimestrale",3,IF(D2="trimestrale",4,IF(D2="bimestrale",6,IF(D2="mensile",12)))))),"") -> 0.1784242778
A17: TAEG | B17: =IF(B7>0,EFFECT(B16,IF(B2="annuale",1,IF(B2="semestrale",2,IF(B2="quadrimestrale",3,IF(B2="trimestrale",4,IF(B2="bimestrale",6,IF(B2="mensile",12))))))),"") -> 0.1380310692 | C17: =IF(C7>0,EFFECT(C16,IF(C2="annuale",1,IF(C2="semestrale",2,IF(C2="quadrimestrale",3,IF(C2="trimestrale",4,IF(C2="bimestrale",6,IF(C2="mensile",12))))))),"") -> 0.1513121975 | D17: =IF(D5>0,EFFECT(D16,IF(D2="annuale",1,IF(D2="semestrale",2,IF(D2="quadrimestrale",3,IF(D2="trimestrale",4,IF(D2="bimestrale",6,IF(D2="mensile",12))))))),"") -> 0.1937633713
A18: Tabella rilevazione dei TEGM ai fini della legge sull'usura applicata | B18: Rilevaz.: 1° ott - 31 dic 12 Applic: 1° apr - 30 giu 13 | C18: Rilevaz.: 1° ott - 31 dic 12 Applic: 1° apr - 30 giu 13 | D18: Rilevaz.: 1° ott - 31 dic 12 Applic: 1° apr - 30 giu 13
A19: Categoria | B19: Prestiti contro cessione del quinto dello stipendio o della pensione | C19: Prestiti contro cessione del quinto dello stipendio o della pensione | D19: Prestiti contro cessione del quinto dello stipendio o della pensione
A20: TEGM (fino a 5.000,00) | B20: 0.1226 | C20: 0.1226 | D20: 0.1226
A21: Tasso di soglia (fino a 5.000,00) | B21: =IF(B20=0,"",(B20*1.25)+4%) -> 0.19325 | C21: =IF(C20=0,"",(C20*1.25)+4%) -> 0.19325 | D21: =IF(D20=0,"",(D20*1.25)+4%) -> 0.19325
A22: TEGM (oltre 5.000,00) | B22: 0.1193 | C22: 0.1193 | D22: 0.1193
A23: Tasso di soglia (oltre 5.000,00) | B23: =(B22*1.25)+4% -> 0.189125 | C23: =(C22*1.25)+4% -> 0.189125 | D23: 0.189125
A24: Note
A88: annuale
A89: semestrale
A90: quadrimestrale
A91: trimestrale
A92: bimestrale
A93: mensile
